lending/lending_fUSD_20251111
["ID","MTS","AMOUNT","RATE_DAILY","PERIOD"]
[393624230,1762863047439,-152.0,0.00039643,7]
[393624231,1762863047451,-1242.0,0.00039643,7]
[393624232,1762863047464,-152.0,0.00039643,7]
[393624233,1762863047476,-151.0,0.00039643,7]
[393624234,1762863047487,-152.0,0.00039643,7]
[393624235,1762863047498,-152.0,0.00039643,7]
[393624236,1762863047508,-1242.0,0.00039643,7]
[393624237,1762863047519,-152.0,0.00039643,7]
[393624238,1762863047529,-151.0,0.00039643,7]
[393624239,1762863047540,-152.0,0.00039643,7]
[393624240,1762863047549,-1242.0,0.00039643,7]
[393624241,1762863047558,-152.0,0.00039643,7]
[393624242,1762863047568,-151.0,0.00039643,7]
[393624243,1762863047578,-152.0,0.00039643,7]
[393624244,1762863047587,-1242.0,0.00039643,7]
[393624245,1762863047597,-152.0,0.00039643,7]
[393624246,1762863047606,-151.0,0.00039643,7]
[393624247,1762863047616,-151.16701834,0.00039643,7]
[393624248,1762863047629,-1242.0,0.00039643,7]
[393624249,1762863047639,-152.0,0.00039643,7]
[393624250,1762863047649,-151.0,0.00039643,7]
[393624251,1762863047658,-1242.0,0.00039643,7]
[393624252,1762863047668,-152.0,0.00039643,7]
[393624253,1762863047677,-151.0,0.00039643,7]
[393624254,1762863047687,-1242.0,0.00039643,7]
[393624255,1762863047697,-152.0,0.00039643,7]
[393624256,1762863047708,-151.0,0.00039643,7]
[393624257,1762863047717,-1242.0,0.00039643,7]
[393624258,1762863047728,-152.0,0.00039643,7]
[393624259,1762863047737,-151.0,0.00039643,7]
[393624260,1762863047748,-1242.0,0.00039643,7]
[393624261,1762863047757,-152.0,0.00039643,7]
[393624262,1762863047768,-151.0,0.00039643,7]
[393624263,1762863047777,-1242.0,0.00039643,7]
[393624264,1762863047787,-152.0,0.00039643,7]
[393624265,1762863047798,-151.0,0.00039643,7]
[393624266,1762863047807,-1242.0,0.00039643,7]
[393624267,1762863047817,-152.0,0.00039643,7]
[393624268,1762863047831,-151.0,0.00039643,7]
[393624269,1762863047840,-1242.0,0.00039643,7]
[393624270,1762863047850,-151.0,0.00039643,7]
[393624271,1762863047860,-152.0,0.00039643,7]
[393624272,1762863047871,-1242.0,0.00039643,7]
[393624273,1762863047881,-152.0,0.00039643,7]
[393624274,1762863047893,-151.0,0.00039643,7]
[393624275,1762863047903,-1242.0,0.00039643,7]
[393624276,1762863047914,-152.0,0.00039643,7]
[393624277,1762863047923,-151.0,0.00039643,7]
[393624278,1762863047934,-1242.0,0.00039643,7]
[393624279,1762863047943,-151.0,0.00039643,7]
[393624280,1762863047953,-152.0,0.00039643,7]
[393624281,1762863047965,-1242.0,0.00039643,7]
[393624282,1762863047975,-152.0,0.00039643,7]
[393624283,1762863047984,-1242.0,0.00039643,7]
[393624284,1762863047994,-151.0,0.00039643,7]
[393624285,1762863048005,-1242.0,0.00039643,7]
[393624286,1762863048015,-152.0,0.00039643,7]
[393624287,1762863048024,-151.0,0.00039643,7]
[393624288,1762863048039,-221.25242395,0.00039643,7]
[393624289,1762863048058,-151.0,0.00039643,7]
[393624290,1762863048069,-1242.0,0.00039643,7]
[393624291,1762863048079,-151.0,0.00039643,7]
[393624292,1762863048088,-1242.0,0.00039643,7]
[393624293,1762863048097,-2500.0,0.00039645,14]
[393624294,1762863048108,-2500.0,0.00039645,14]
[393624295,1762863048119,-151.0,0.00039648,14]
[393624296,1762863048128,-151.0,0.00039648,14]
[393624297,1762863048138,-163.850523,0.0003965,60]
[393624298,1762863048148,-157.114356,0.0003965,60]
[393624299,1762863048158,-162.264262,0.0003965,60]
[393624300,1762863048167,-153.831672,0.0003965,60]
[393624301,1762863048177,-151.0,0.0003965,120]
[393624302,1762863048187,-151.0,0.0003965,120]
[393624303,1762863048197,-164.376064,0.0003965,120]
[393624304,1762863048208,-151.0,0.0003965,120]
[393624305,1762863048219,-151.0,0.0003965,120]
[393624306,1762863048228,-173.500848,0.0003965,120]
[393624307,1762863048238,-151.612033,0.0003965,120]
[393624308,1762863048251,-151.0,0.0003965,60]
[393624309,1762863048261,-151.0,0.0003965,90]
[393624310,1762863048270,-151.0,0.0003965,120]
[393624311,1762863048280,-151.0,0.0003965,120]
[393624312,1762863048289,-151.0,0.0003965,120]
[393624313,1762863048298,-152.546117,0.0003965,120]
[393624314,1762863048308,-151.0,0.0003965,120]
[393624315,1762863048318,-151.0,0.0003965,120]
[393624316,1762863048328,-151.0,0.0003965,120]
[393624317,1762863048337,-151.0,0.0003965,120]
[393624318,1762863048347,-151.0,0.0003965,120]
[393624319,1762863048357,-151.0,0.0003965,120]
[393624320,1762863048367,-151.0,0.0003965,120]
[393624321,1762863048377,-151.0,0.0003965,120]
[393624322,1762863048387,-156.996904,0.0003965,120]
[393624323,1762863048396,-151.0,0.0003965,120]
[393624324,1762863048407,-151.0,0.0003965,120]
[393624325,1762863048419,-151.0,0.0003965,120]
[393624326,1762863048429,-151.0,0.0003965,120]
[393624327,1762863048617,-151.0,0.0003965,120]
[393624328,1762863048628,-151.0,0.0003965,60]
[393624329,1762863048637,-151.0,0.0003965,120]
[393624330,1762863048646,-151.0,0.0003965,120]
[393624331,1762863048656,-151.0,0.0003965,120]
[393624332,1762863048665,-151.0,0.0003965,120]
[393624333,1762863048674,-174.507721,0.0003965,120]
[393624334,1762863048683,-195.326533,0.0003965,120]
[393624335,1762863048692,-159.554663,0.0003965,120]
[393624336,1762863048702,-154.870085,0.0003965,120]
[393624337,1762863048713,-151.0,0.0003965,120]
[393624338,1762863048723,-208.928791,0.0003965,2]
[393624339,1762863048733,-152.956912,0.0003965,120]
[393624340,1762863048742,-208.928791,0.0003965,2]
[393624341,1762863048753,-151.0,0.0003965,120]
[393624342,1762863048762,-208.928791,0.0003965,2]
[393624343,1762863048782,-151.0,0.0003965,120]
[393624344,1762863048792,-151.0,0.0003965,120]
[393624345,1762863048803,-208.928791,0.0003965,2]
[393624346,1762863048812,-151.0,0.0003965,120]
[393624347,1762863048822,-151.0,0.0003965,120]
[393624348,1762863048832,-151.0,0.0003965,120]
[393624349,1762863048842,-151.0,0.0003965,120]
[393624350,1762863048852,-151.0,0.0003965,120]
[393624351,1762863048862,-151.0,0.0003965,120]
[393624352,1762863048872,-151.0,0.0003965,120]
[393624353,1762863048882,-151.0,0.0003965,120]
[393624354,1762863048896,-151.0,0.0003965,120]
[393624355,1762863048907,-151.0,0.0003965,120]
[393624356,1762863048917,-151.0,0.0003965,120]
[393624357,1762863048927,-151.0,0.0003965,120]
[393624358,1762863048938,-151.0,0.0003965,120]
[393624359,1762863048948,-175.796118,0.0003965,120]
[393624360,1762863048961,-151.0,0.0003965,120]
[393624361,1762863048971,-208.187878,0.0003965,120]
[393624362,1762863048981,-151.0,0.0003965,120]
[393624363,1762863048991,-151.0,0.0003965,120]
[393624364,1762863049001,-274.94546,0.0003965,15]
[393624365,1762863049011,-151.0,0.0003965,120]
[393624366,1762863049020,-151.0,0.0003965,120]
[393624367,1762863049030,-151.0,0.0003965,120]
[393624368,1762863049039,-151.0,0.0003965,120]
[393624369,1762863049049,-151.0,0.0003965,120]
[393624370,1762863049059,-204.058339,0.0003965,120]
[393624371,1762863049068,-151.0,0.0003965,120]
[393624372,1762863049078,-151.0,0.0003965,120]
[393624373,1762863049087,-151.0,0.0003965,120]
[393624374,1762863049097,-151.0,0.0003965,120]
[393624375,1762863049107,-151.0,0.0003965,120]
[393624376,1762863049116,-151.0,0.0003965,120]
[393624377,1762863049126,-151.0,0.0003965,120]
[393624378,1762863049136,-151.0,0.0003965,120]
[393624379,1762863049147,-151.0,0.0003965,120]
[393624380,1762863049157,-185.1304,0.0003965,120]
[393624381,1762863049167,-151.0,0.0003965,120]
[393624382,1762863049176,-151.0,0.0003965,120]
[393624383,1762863049186,-151.0,0.0003965,120]
[393624384,1762863049196,-151.0,0.0003965,120]
[393624385,1762863049208,-174.561151,0.0003965,120]
[393624386,1762863049218,-176.861987,0.0003965,120]
[393624387,1762863049228,-151.0,0.0003965,120]
[393624388,1762863049238,-151.0,0.0003965,120]
[393624389,1762863049247,-236.062878,0.0003965,120]
[393624390,1762863049257,-151.0,0.0003965,120]
[393624391,1762863049267,-153.499122,0.0003965,120]
[393624392,1762863049278,-151.0,0.0003965,120]
[393624393,1762863049288,-151.0,0.0003965,120]
[393624394,1762863049298,-151.0,0.0003965,120]
[393624395,1762863049308,-151.0,0.0003965,120]
[393624396,1762863049318,-151.0,0.0003965,120]
[393624397,1762863049327,-151.0,0.0003965,30]
[393624398,1762863049338,-151.0,0.0003965,120]
[393624399,1762863049347,-151.0,0.0003965,120]
[393624400,1762863049357,-151.0,0.0003965,120]
[393624401,1762863049367,-151.0,0.0003965,120]
[393624402,1762863049376,-151.0,0.0003965,120]
[393624403,1762863049386,-294.517034,0.0003965,120]
[393624404,1762863049396,-5155.78901987,0.00039651,29]
[393624405,1762863049406,-100949.59351468,0.00039651,30]
[393624406,1762863049596,-1242.0,0.00039643,7]
[393624407,1762863049606,-151.0,0.00039643,7]
[393624408,1762863049616,-166.76662791,0.00039651,30]
[393624409,1762863049627,-1641.97699232,0.00039651,30]
[393624410,1762863049638,-500.0,0.00039651,30]
[393624411,1762863049650,-485.2560483,0.00039651,30]
[393624412,1762863049661,-27160.98920825,0.00039651,30]
[393624413,1762863049768,-6604.45212214,0.00036167,2]
[393624414,1762863049779,-500.0,0.00038356,2]
[393624415,1762863049789,-151.0,0.00039642,120]
[393624416,1762863049799,-76968.42852133,0.00039651,30]
[393624417,1762863049810,-492718.97284963,0.00039651,30]
[393624418,1762863049821,-40762.0057152,0.00039651,30]
[393624419,1762863049832,-500.0,0.00039651,30]
[393624420,1762863049849,-2968.7880102,0.00039651,30]
[393624421,1762863049869,-250.0,0.00039651,30]
[393624422,1762863049887,-792.473075,0.00039651,30]
[393624423,1762863049903,-1162.31644101,0.00039651,30]
[393624424,1762863049918,-683.95731502,0.00039651,30]
[393624425,1762863049935,-1038.98552268,0.00039651,30]
[393624426,1762863049952,-4933.99024006,0.00039651,30]
[393624427,1762863049970,-3919.1628,0.00039651,30]
[393624428,1762863049987,-2603.62516926,0.00039651,30]
[393624429,1762863050003,-3359.07949971,0.00039651,30]
[393624430,1762863050018,-1128.26844074,0.00039651,30]
[393624431,1762863050031,-473.93335833,0.00039651,30]
[393624432,1762863050049,-3005.7357792,0.00039651,30]
[393624433,1762863050065,-6818.59551595,0.00039651,30]
[393624434,1762863050081,-1183.02511855,0.00039651,30]
[393624435,1762863050097,-99430.25092416,0.00039651,30]
[393624436,1762863050323,-6.07298457,0.00039651,30]
[393624437,1762863050338,-2284.85600619,0.00039651,30]
[393624438,1762863050356,-5169.654203,0.00039651,30]
[393624439,1762863050379,-227.65809693,0.00036265,15]
[393624440,1762863050390,-237.9394745,0.00039651,30]
[393624441,1762863050405,-1337.03391193,0.00039651,30]
[393624442,1762863050437,-500.0,0.00036265,15]
[393624443,1762863050448,-6604.45212212,0.00036565,2]
[393624444,1762863050460,-500.0,0.00038356,2]
[393624445,1762863050473,-32073.7272402,0.00039651,30]
[393624453,1762863986869,2030.42673006,0.00015,2]
[393624458,1762864072291,87969.57326994,0.00015,2]
[393624460,1762864217081,-500.0,0.00014909,2]
[393624461,1762864217102,-195.0,0.00014932,2]
[393624462,1762864217122,-166.66602186,0.00014955,2]
[393624463,1762864217143,-1200.0,0.00014999,2]
[393624464,1762864217163,-300.0,0.00014999,2]
[393624465,1762864217183,-150.0,0.00014999,2]
[393624466,1762864217206,-4268.33397814,0.00015,2]
[393624497,1762864231904,-497.90324081,0.00015,2]
[393624502,1762864231965,-955.04341264,0.00015,2]
[393624503,1762864231976,-589.41127401,0.00015,2]
[393624504,1762864232021,-727.65809693,0.00015,2]
[393624505,1762864232133,-502.99999997,0.00015,2]
[393624523,1762864237817,-25713.04741763,0.00015,2]
[393624524,1762864237827,-10000.01,0.00015,2]
[393624525,1762864237837,-1200.0,0.00015009,2]
[393624526,1762864237847,-500.0,0.00015009,2]
[393624528,1762864237856,-500.0,0.00015009,2]
[393624529,1762864237865,-500.0,0.00015009,2]
[393624530,1762864237874,-500.0,0.00015009,2]
[393624531,1762864237884,-500.0,0.00015009,2]
[393624532,1762864237895,-282.74140427,0.00015009,2]
[393624533,1762864237904,-500.0,0.00015009,2]
[393624534,1762864237913,-500.0,0.00015009,2]
[393624535,1762864237923,-500.0,0.00015009,2]
[393624536,1762864237932,-500.0,0.00015009,2]
[393624537,1762864237943,-500.0,0.00015009,2]
[393624538,1762864237952,-500.0,0.00015009,2]
[393624539,1762864237963,-500.0,0.00015009,2]
[393624540,1762864237975,-500.0,0.00015009,2]
[393624541,1762864237986,-500.0,0.00015009,2]
[393624542,1762864237996,-500.0,0.00015009,2]
[393624543,1762864238006,-500.0,0.00015009,2]
[393624544,1762864238016,-500.0,0.00015009,2]
[393624545,1762864238027,-500.0,0.00015009,2]
[393624546,1762864238036,-500.0,0.00015009,2]
[393624547,1762864238046,-1005.09466175,0.00015009,2]
[393624548,1762864238056,-49743.01178488,0.0001501,2]
[393624549,1762864238066,-500.46328712,0.00015073,2]
[393624550,1762864238075,-292.07745313,0.00015073,2]
[393624551,1762864238086,-500.0,0.00015073,2]
[393624552,1762864238095,-500.0,0.00015073,2]
[393624553,1762864238105,-500.0,0.00015073,2]
[393624554,1762864238115,-500.0,0.00015073,2]
[393624555,1762864238124,-500.0,0.00015073,2]
[393624556,1762864238134,-164.23280861,0.00015073,2]
[393624557,1762864238144,-274.55088361,0.00015073,2]
[393624558,1762864238154,-427.26831172,0.00015073,2]
[393624559,1762864238164,-500.0,0.00015073,2]
[393624561,1762864238173,-500.64822633,0.00015073,2]
[393624563,1762864238183,-500.0,0.00015073,2]
[393624564,1762864238192,-500.0,0.00015073,2]
[393624565,1762864238203,-500.0,0.00015073,2]
[393624566,1762864238212,-503.29476218,0.000154,2]
[393624567,1762864238222,-1000.0,0.00015621,2]
[393624569,1762864238231,-523.37741265,0.00015621,2]
[393624570,1762864238241,-503.86217753,0.00015621,2]
[393624571,1762864238253,-1000.0,0.00015621,2]
[393624572,1762864238263,-728.14650797,0.00015621,2]
[393624573,1762864238274,-1000.0,0.00015621,2]
[393624574,1762864238283,-1000.0,0.00015621,2]
[393624576,1762864238292,-1000.0,0.00015621,2]
[393624578,1762864238302,-652.06591262,0.00015621,2]
[393624580,1762864238314,-255.0,0.00016124,2]
[393624581,1762864238324,-1500.0,0.00016168,2]
[393624583,1762864238334,-1500.0,0.00016168,2]
[393624584,1762864238344,-1500.0,0.00016168,2]
[393624585,1762864238355,-1500.0,0.00016168,2]
[393624586,1762864238364,-1500.0,0.00016168,2]
[393624587,1762864238380,-180.29,0.0001625,2]
[393624588,1762864238395,-2632.9407,0.00016384,2]
[393624589,1762864238404,-250.0,0.000164,2]
[393624590,1762864238414,-195.0,0.000164,2]
[393624591,1762864238425,-420.0,0.00016416,2]
[393624592,1762864238435,-253.0,0.00016426,2]
[393624593,1762864238445,-1680.0,0.00016499,2]
[393624594,1762864238454,-250.0,0.000165,2]
[393624595,1762864238464,-193.0,0.0001651,2]
[393624596,1762864238474,-512.74339849,0.00016716,2]
[393624597,1762864238483,-1004.65985304,0.00016716,2]
[393624598,1762864238493,-1851.17997703,0.00016716,2]
[393624599,1762864238502,-1003.59184931,0.00016716,2]
[393624600,1762864238512,-2000.0,0.00016716,2]
[393624601,1762864238523,-250.0,0.00017,2]
[393624602,1762864238533,-2500.0,0.00017264,2]
[393624603,1762864238542,-433.0,0.00017339,2]
[393624604,1762864238553,-200.0,0.00017367,2]
[393624605,1762864238563,-1900.0,0.000175,6]
[393624606,1762864238573,-3800.0,0.000176,6]
[393624607,1762864238583,-5800.0,0.000177,6]
[393624608,1762864238593,-300.0,0.000177,5]
[393624609,1762864238603,-7700.0,0.000178,6]
[393624610,1762864238613,-3006.74000895,0.00017812,2]
[393624611,1762864238623,-9600.0,0.000179,6]
[393624612,1762864238633,-396.34630471,0.000179,2]
[393624613,1762864238644,-221.90321254,0.000179,2]
[393624614,1762864238654,-906.77770922,0.000179,2]
[393624615,1762864238664,-619.59008654,0.000179,2]
[393624616,1762864238674,-818.82966898,0.000179,2]
[393624617,1762864238684,-5154.89989462,0.000179,2]
[393624618,1762864238694,-254.22527131,0.000179,2]
[393624619,1762864238704,-231.82496353,0.00017964,2]
[393624620,1762864238714,-587.0,0.00017966,2]
[393624621,1762864238725,-501.87005511,0.00017973,2]
[393624622,1762864238735,-309.3685034,0.00017973,2]
[393624623,1762864238749,-503.42717423,0.00017973,2]
[393624624,1762864238759,-500.0,0.00017973,2]
[393624625,1762864238770,-500.0,0.00017973,2]
[393624626,1762864238779,-500.0,0.00017973,2]
[393624627,1762864238789,-500.0,0.00017973,2]
[393624628,1762864238799,-500.0,0.00017973,2]
[393624629,1762864238809,-500.0,0.00017973,2]
[393624630,1762864238819,-526.70137073,0.00017973,2]
[393624631,1762864238829,-500.0,0.00017973,2]
[393624632,1762864238839,-500.0,0.00017973,2]
[393624633,1762864238848,-501.63470427,0.00017973,2]
[393624634,1762864238857,-163.78594161,0.00017973,2]
[393624635,1762864238867,-512.44749743,0.00017973,2]
[393624636,1762864238877,-500.0,0.00017973,2]
[393624637,1762864238887,-160.0734419,0.00017973,2]
[393624638,1762864238898,-500.0,0.00017973,2]
[393624639,1762864238908,-500.0,0.00017973,2]
[393624640,1762864238917,-503.18215431,0.00017973,2]
[393624641,1762864238927,-500.0,0.00017973,2]
[393624642,1762864238937,-501.42722306,0.00017973,2]
[393624643,1762864238947,-500.0,0.00017973,2]
[393624644,1762864238956,-327.0512117,0.00017973,2]
[393624645,1762864238966,-363.25928453,0.00017973,2]
[393624646,1762864238975,-534.98815412,0.00017973,2]
[393624647,1762864238985,-503.66064638,0.00017973,2]
[393624648,1762864238995,-479.69647102,0.00017973,2]
[393624649,1762864239005,-342.5739675,0.00017973,2]
[393624650,1762864239015,-500.0,0.00017973,2]
[393624651,1762864239026,-500.0,0.00017973,2]
[393624652,1762864239036,-500.0,0.00017973,2]
[393624653,1762864239045,-500.0,0.00017973,2]
[393624654,1762864239055,-500.0,0.00017973,2]
[393624655,1762864239065,-500.0,0.00017973,2]
[393624656,1762864239075,-500.0,0.00017973,2]
[393624657,1762864239084,-500.0,0.00017973,2]
[393624658,1762864239094,-218.82459366,0.00017973,2]
[393624659,1762864239103,-500.0,0.00017973,2]
[393624660,1762864239112,-500.0,0.00017973,2]
[393624661,1762864239122,-177.4,0.0001799,3]
[393624662,1762864239132,-163.43,0.0001799,2]
[393624663,1762864239141,-750.50423412,0.0001799,2]
[393624664,1762864239151,-750.50423412,0.0001799,2]
[393624665,1762864239162,-1040.9103192,0.00017999,5]
[393624666,1762864239171,-182.68968962,0.00017999,5]
[393624667,1762864239181,-249.90471051,0.00017999,2]
[393624668,1762864239191,-156.71973578,0.00017999,2]
[393624669,1762864239200,-315.30340385,0.00017999,2]
[393624670,1762864239210,-500.0,0.00017999,2]
[393624671,1762864239219,-254.96976458,0.00017999,2]
[393624672,1762864239229,-510.83669645,0.00017999,2]
[393624673,1762864239239,-178.4788352,0.00017999,2]
[393624674,1762864239248,-175.40341973,0.00017999,2]
[393624675,1762864239258,-5328597.08005283,0.00018,2]
[393624676,1762864239267,-389943.67282707,0.00018,2]
[393624677,1762864239277,-750.50423412,0.0001809,2]
[393624678,1762864239287,-564587.67445606,0.000181,2]
[393624679,1762864239297,-2351.0,0.00018149,2]
[393624680,1762864239310,-171.62032392,0.000183,2]
[393624681,1762864239320,-1000.0,0.00018521,2]
[393624682,1762864239330,-1000.0,0.00018521,2]
[393624683,1762864239340,-245.55904987,0.00018521,2]
[393624684,1762864239351,-1000.0,0.00018521,2]
[393624685,1762864239361,-501.16416456,0.00018521,2]
[393624686,1762864239370,-1000.0,0.00018521,2]
[393624687,1762864239380,-501.80253171,0.00018521,2]
[393624688,1762864239389,-1002.03998791,0.00018521,2]
[393624689,1762864239400,-1000.0,0.00018521,2]
[393624690,1762864239410,-1000.0,0.00018521,2]
[393624691,1762864239420,-1000.0,0.00018521,2]
[393624692,1762864239430,-1000.0,0.00018521,2]
[393624693,1762864239441,-503.0410571,0.00018521,2]
[393624694,1762864239451,-1000.0,0.00018521,2]
[393624695,1762864239461,-1000.97016324,0.00018521,2]
[393624696,1762864239471,-656.38096514,0.00018521,2]
[393624697,1762864239481,-1000.0,0.00018521,2]
[393624698,1762864239491,-1000.0,0.00018521,2]
[393624699,1762864239500,-1002.15227908,0.00018521,2]
[393624700,1762864239510,-1000.0,0.00018521,2]
[393624701,1762864239519,-1000.0,0.00018521,2]
[393624702,1762864239530,-362.45651944,0.00018521,2]
[393624703,1762864239539,-1057.82245098,0.000186,2]
[393624704,1762864239549,-736.0,0.00018629,2]
[393624705,1762864239559,-195.0,0.000187,2]
[393624706,1762864239570,-150.15,0.000188,2]
[393624707,1762864239580,-150.15,0.000188,2]
[393624708,1762864239590,-150.15,0.000188,2]
[393624709,1762864239600,-150.15,0.000188,2]
[393624710,1762864239610,-150.15,0.000188,2]
[393624711,1762864239620,-300.0,0.00019,2]
[393624712,1762864239630,-5122.98177982,0.00019,2]
[393624713,1762864239640,-354.69132383,0.0001901,7]
[393624714,1762864239650,-150.0,0.00019067,2]
[393624715,1762864239661,-162.30554255,0.00019067,2]
[393624716,1762864239671,-1500.0,0.00019068,2]
[393624717,1762864239681,-1500.0,0.00019068,2]
[393624718,1762864239690,-1500.0,0.00019068,2]
[393624719,1762864239700,-1064.94610672,0.00019068,2]
[393624720,1762864239710,-1500.0,0.00019068,2]
[393624721,1762864239720,-1500.0,0.00019068,2]
[393624722,1762864239730,-506.67966639,0.00019068,2]
[393624723,1762864239740,-1005.14005012,0.00019068,2]
[393624724,1762864239750,-1500.0,0.00019068,2]
[393624725,1762864239760,-1378.71672338,0.00019068,2]
[393624726,1762864239771,-888.87940477,0.00019068,2]
[393624727,1762864239780,-643.83457093,0.00019068,2]
[393624728,1762864239790,-500.0,0.00019178,2]
[393624729,1762864239800,-500.0,0.00019178,2]
[393624730,1762864239810,-500.0,0.00019178,2]
[393624731,1762864239820,-500.0,0.00019178,2]
[393624732,1762864239829,-500.0,0.00019178,2]
[393624733,1762864239839,-500.0,0.00019178,2]
[393624734,1762864239849,-500.0,0.00019178,2]
[393624735,1762864239858,-500.0,0.00019178,2]
[393624736,1762864239868,-500.0,0.00019178,2]
[393624737,1762864239878,-500.0,0.00019178,2]
[393624738,1762864239888,-500.0,0.00019178,2]
[393624739,1762864239898,-500.0,0.00019178,2]
[393624740,1762864239908,-500.0,0.00019178,2]
[393624741,1762864239918,-500.0,0.00019178,2]
[393624742,1762864239928,-500.0,0.00019178,2]
[393624743,1762864239938,-397.9981518,0.00019178,2]
[393624744,1762864239947,-150.0,0.00019178,2]
[393624745,1762864239957,-200.0,0.00019178,2]
[393624746,1762864239967,-500.0,0.00019284,2]
[393624747,1762864239977,-6064.59957958,0.000195,7]
[393624748,1762864239987,-204.91063775,0.00019615,2]
[393624749,1762864239996,-502.12563559,0.00019616,2]
[393624750,1762864240006,-2000.0,0.00019616,2]
[393624751,1762864240016,-2000.0,0.00019616,2]
[393624752,1762864240026,-515.44652778,0.00019616,2]
[393624753,1762864240037,-2000.0,0.00019616,2]
[393624754,1762864240046,-502.48155544,0.00019616,2]
[393624755,1762864240056,-823.0,0.00019663,2]
[393624756,1762864240067,-250.0,0.00019726,2]
[393624757,1762864240076,-400.0,0.00019863,2]
[393624758,1762864240086,-3292.0,0.00019964,2]
[393624759,1762864240097,-1252.0,0.00020024,2]
[393624760,1762864240106,-856.75290102,0.00020164,2]
[393624761,1762864240116,-198.09819187,0.00020164,2]
[393624762,1762864240127,-332.23810148,0.00020274,2]
[393624763,1762864240137,-818.82966897,0.00020331,2]
[393624764,1762864240146,-600.0,0.00020548,2]
[393624765,1762864240156,-478.44322026,0.00020641,2]
[393624766,1762864240166,-396.3463047,0.00020993,2]
[393624767,1762864240175,-350.0,0.00021,2]
[393624768,1762864240184,-905.38402433,0.00021233,2]
[393624769,1762864240194,-1152.0,0.0002152,2]
[393624770,1762864240203,-5000.0,0.00021918,2]
[393624771,1762864240213,-2957.0,0.0002196,2]
[393624772,1762864240222,-160.59,0.00022,2]
[393624773,1762864240232,-8207.96,0.00022,7]
[393624774,1762864240243,-500.0,0.00022087,2]
[393624775,1762864240252,-818.82966897,0.00022763,2]
[393624776,1762864240262,-150.0,0.00022816,2]
[393624777,1762864240271,-648.17039998,0.0002292,2]
[393624778,1762864240281,-3628.29677373,0.00023,2]
[393624779,1762864240291,-760.19985183,0.00023024,2]
[393624780,1762864240301,-872.22930368,0.00023128,2]
[393624781,1762864240313,-984.25875553,0.00023232,2]
[393624782,1762864240322,-1096.28820738,0.00023335,2]
[393624783,1762864240331,-1208.31765923,0.00023439,2]
[393624784,1762864240340,-1320.34711108,0.00023543,2]
[393624785,1762864240350,-343.0,0.00023552,2]
[393624786,1762864240360,-1432.37656293,0.00023647,2]
[393624787,1762864240370,-1544.40601478,0.00023751,2]
[393624788,1762864240380,-1656.43546663,0.00023855,2]
[393624789,1762864240390,-1768.46491848,0.00023959,2]
[393624790,1762864240400,-1880.49437033,0.00024063,2]
[393624791,1762864240409,-396.3463047,0.00024086,2]
[393624792,1762864240420,-1992.52382218,0.00024167,2]
[393624793,1762864240431,-2104.55327402,0.00024271,2]
[393624794,1762864240441,-2216.58272587,0.00024374,2]
[393624795,1762864240451,-180.29,0.00024375,2]
[393624796,1762864240460,-2328.61217772,0.00024478,2]
[393624797,1762864240470,-2440.64162957,0.00024582,2]
[393624798,1762864240480,-2552.67108142,0.00024686,2]
[393624799,1762864240489,-2664.70053328,0.0002479,2]
[393624800,1762864240499,-311724.621646,0.000248,3]